[Event "Late-Titled-Tuesday-Blitz-May-28-2024"]
[Site "Chess.com"]
[Date "2024.05.28"]
[Round "1"]
[White "FuenfgegenWilly"]
[Black "KNVB"]
[Result "1/2-1/2"]
[WhiteElo "2451"]
[BlackElo "2770"]
[TimeControl "180+1"]
[EndTime "14:10:02 PDT"]
[Termination "Game drawn - insufficient material"]

1. b3 {[%clk 0:02:56.9]} 1... e5 {[%clk 0:02:52.1]} 2. Bb2 {[%clk 0:02:57.8]}
2... Nc6 {[%clk 0:02:52.7]} 3. e3 {[%clk 0:02:58.2]} 3... g6 {[%clk 0:02:53.2]}
4. c4 {[%clk 0:02:57.1]} 4... Bg7 {[%clk 0:02:53.4]} 5. Nf3 {[%clk 0:02:56.7]}
5... d6 {[%clk 0:02:52.1]} 6. Nc3 {[%clk 0:02:53.8]} 6... Nf6 {[%clk 0:02:52.4]}
7. Be2 {[%clk 0:02:43.1]} 7... O-O {[%clk 0:02:53.3]} 8. O-O {[%clk 0:02:42.2]}
8... Re8 {[%clk 0:02:53.9]} 9. d3 {[%clk 0:02:36.2]} 9... e4 {[%clk 0:02:47.4]}
10. dxe4 {[%clk 0:02:32.1]} 10... Nxe4 {[%clk 0:02:48.3]} 11. Qc1 {[%clk
0:02:25.8]} 11... Nxc3 {[%clk 0:02:32.2]} 12. Bxc3 {[%clk 0:02:26.1]} 12... Bg4
{[%clk 0:02:32.6]} 13. h3 {[%clk 0:02:15.9]} 13... Bd7 {[%clk 0:02:32.5]} 14.
Qb2 {[%clk 0:02:15.5]} 14... Bxc3 {[%clk 0:02:31.8]} 15. Qxc3 {[%clk 0:02:16.4]}
15... Ne5 {[%clk 0:02:31.5]} 16. Nxe5 {[%clk 0:02:15.6]} 16... dxe5 {[%clk
0:02:27.8]} 17. Rfd1 {[%clk 0:02:12.1]} 17... Qe7 {[%clk 0:02:28.4]} 18. c5
{[%clk 0:02:05.3]} 18... Bc6 {[%clk 0:02:18.6]} 19. b4 {[%clk 0:02:02.9]} 19...
Red8 {[%clk 0:02:18]} 20. Bc4 {[%clk 0:01:47.8]} 20... Kg7 {[%clk 0:02:14.3]}
21. a3 {[%clk 0:01:35.8]} 21... Rab8 {[%clk 0:02:10.2]} 22. Qb3 {[%clk
0:01:23.9]} 22... Be8 {[%clk 0:02:08.7]} 23. Rxd8 {[%clk 0:01:16.7]} 23... Rxd8
{[%clk 0:02:08.9]} 24. Rd1 {[%clk 0:01:17.1]} 24... b6 {[%clk 0:01:44.8]} 25.
cxb6 {[%clk 0:01:15.9]} 25... cxb6 {[%clk 0:01:42]} 26. Bd5 {[%clk 0:01:09.4]}
26... Rc8 {[%clk 0:01:31.2]} 27. a4 {[%clk 0:01:04.6]} 27... Qc7 {[%clk
0:01:26]} 28. a5 {[%clk 0:01:02]} 28... bxa5 {[%clk 0:01:25]} 29. bxa5 {[%clk
0:00:59.9]} 29... Qxa5 {[%clk 0:01:17]} 30. Qb2 {[%clk 0:00:54.8]} 30... Qc3
{[%clk 0:01:12.6]} 31. Qa2 {[%clk 0:00:44.7]} 31... a5 {[%clk 0:01:01.7]} 32.
Rb1 {[%clk 0:00:44.8]} 32... a4 {[%clk 0:00:56.8]} 33. Rb7 {[%clk 0:00:41]}
33... Rc7 {[%clk 0:00:57.1]} 34. Rb8 {[%clk 0:00:31.2]} 34... Re7 {[%clk
0:00:17.2]} 35. Ra8 {[%clk 0:00:27.5]} 35... h5 {[%clk 0:00:14.5]} 36. h4 {[%clk
0:00:26.8]} 36... e4 {[%clk 0:00:05.7]} 37. g3 {[%clk 0:00:22.9]} 37... Qe5
{[%clk 0:00:02.8]} 38. Bc4 {[%clk 0:00:20.5]} 38... Rc7 {[%clk 0:00:02.5]} 39.
Rd8 {[%clk 0:00:15]} 39... Bd7 {[%clk 0:00:01.9]} 40. Bxf7 {[%clk 0:00:13.1]}
40... Qf6 {[%clk 0:00:02.3]} 41. Bc4 {[%clk 0:00:11.9]} 41... Be6 {[%clk
0:00:02.1]} 42. Rd4 {[%clk 0:00:06.5]} 42... Bxc4 {[%clk 0:00:02.1]} 43. Rxc4
{[%clk 0:00:07.4]} 43... Qf7 {[%clk 0:00:02.3]} 44. Rxc7 {[%clk 0:00:06.8]}
44... Qxc7 {[%clk 0:00:03.2]} 45. Qxa4 {[%clk 0:00:07]} 45... Qe7 {[%clk
0:00:03]} 46. Qd4+ {[%clk 0:00:07]} 46... Kh6 {[%clk 0:00:03.2]} 47. Kg2 {[%clk
0:00:07.9]} 47... Kh7 {[%clk 0:00:03.7]} 48. Qd5 {[%clk 0:00:08.2]} 48... Qe8
{[%clk 0:00:03.1]} 49. Qd6 {[%clk 0:00:07.7]} 49... Kg7 {[%clk 0:00:02.3]} 50.
Qc7+ {[%clk 0:00:08]} 50... Kh6 {[%clk 0:00:02.3]} 51. Qf4+ {[%clk 0:00:08.9]}
51... Kg7 {[%clk 0:00:02.9]} 52. Qg5 {[%clk 0:00:09.2]} 52... Qe6 {[%clk
0:00:03.2]} 53. Qf4 {[%clk 0:00:09.3]} 53... Kh7 {[%clk 0:00:03]} 54. Qc7+
{[%clk 0:00:08.9]} 54... Kg8 {[%clk 0:00:02.7]} 55. Qb8+ {[%clk 0:00:08.7]}
55... Kg7 {[%clk 0:00:03]} 56. Qc7+ {[%clk 0:00:08.6]} 56... Kg8 {[%clk
0:00:03.6]} 57. Qf4 {[%clk 0:00:08.7]} 57... Kg7 {[%clk 0:00:02.9]} 58. f3
{[%clk 0:00:09.6]} 58... exf3+ {[%clk 0:00:02.9]} 59. Kxf3 {[%clk 0:00:10.5]}
59... Qd5+ {[%clk 0:00:02.6]} 60. Qe4 {[%clk 0:00:10.9]} 60... Qd1+ {[%clk
0:00:03.1]} 61. Kf4 {[%clk 0:00:11.1]} 61... Qf1+ {[%clk 0:00:02.9]} 62. Qf3
{[%clk 0:00:11.1]} 62... Qc1 {[%clk 0:00:02.8]} 63. Qb7+ {[%clk 0:00:10.3]}
63... Kh6 {[%clk 0:00:03.4]} 64. Qe7 {[%clk 0:00:08.8]} 64... Qf1+ {[%clk
0:00:03.1]} 65. Ke4 {[%clk 0:00:08.5]} 65... Qf5+ {[%clk 0:00:03.1]} 66. Kd4
{[%clk 0:00:08.1]} 66... Qf3 {[%clk 0:00:03.2]} 67. Qe5 {[%clk 0:00:07.1]} 67...
Kh7 {[%clk 0:00:03]} 68. Qf4 {[%clk 0:00:07]} 68... Qd1+ {[%clk 0:00:03.2]} 69.
Ke5 {[%clk 0:00:07.3]} 69... Qd7 {[%clk 0:00:03.3]} 70. Kf6 {[%clk 0:00:06.8]}
70... Qe8 {[%clk 0:00:02.4]} 71. e4 {[%clk 0:00:06.3]} 71... Qf8+ {[%clk
0:00:02.5]} 72. Ke5 {[%clk 0:00:06.5]} 72... Qb8+ {[%clk 0:00:02.8]} 73. Ke6
{[%clk 0:00:06.6]} 73... Qe8+ {[%clk 0:00:03]} 74. Kd5 {[%clk 0:00:06.7]} 74...
Qb5+ {[%clk 0:00:02.9]} 75. Kd4 {[%clk 0:00:06.4]} 75... Qb4+ {[%clk 0:00:03.2]}
76. Ke3 {[%clk 0:00:06.7]} 76... Qc3+ {[%clk 0:00:03.1]} 77. Kf2 {[%clk
0:00:06.9]} 77... Qc2+ {[%clk 0:00:03.7]} 78. Kf3 {[%clk 0:00:07.5]} 78... Qd3+
{[%clk 0:00:04.2]} 79. Qe3 {[%clk 0:00:07.7]} 79... Qf1+ {[%clk 0:00:04.7]} 80.
Qf2 {[%clk 0:00:06.5]} 80... Qd3+ {[%clk 0:00:05.1]} 81. Kf4 {[%clk 0:00:05.7]}
81... Kg7 {[%clk 0:00:02.5]} 82. e5 {[%clk 0:00:04.2]} 82... Qf5+ {[%clk
0:00:02.5]} 83. Ke3 {[%clk 0:00:04.3]} 83... Qxe5+ {[%clk 0:00:03.2]} 84. Kf3
{[%clk 0:00:05]} 84... Qd5+ {[%clk 0:00:03.4]} 85. Ke3 {[%clk 0:00:05.1]} 85...
Qc5+ {[%clk 0:00:03.6]} 86. Kf3 {[%clk 0:00:05.5]} 86... Qd5+ {[%clk 0:00:03.6]}
87. Ke3 {[%clk 0:00:05.8]} 87... Kg8 {[%clk 0:00:03.7]} 88. Qf4 {[%clk
0:00:04.6]} 88... Qb3+ {[%clk 0:00:04.2]} 89. Ke4 {[%clk 0:00:04.7]} 89... Qc2+
{[%clk 0:00:04.4]} 90. Ke5 {[%clk 0:00:05.1]} 90... Qc6 {[%clk 0:00:04.1]} 91.
Qg5 {[%clk 0:00:03.8]} 91... Kf7 {[%clk 0:00:03]} 92. Qf4+ {[%clk 0:00:03.9]}
92... Kg7 {[%clk 0:00:03.5]} 93. Qg5 {[%clk 0:00:03.9]} 93... Qc5+ {[%clk
0:00:03.6]} 94. Kf4 {[%clk 0:00:04.3]} 94... Qd4+ {[%clk 0:00:03.7]} 95. Kf3
{[%clk 0:00:04.6]} 95... Qd3+ {[%clk 0:00:03.9]} 96. Kf4 {[%clk 0:00:05.1]}
96... Qd2+ {[%clk 0:00:04]} 97. Ke5 {[%clk 0:00:02.9]} 97... Qe2+ {[%clk
0:00:03.2]} 98. Kf4 {[%clk 0:00:03.1]} 98... Qf2+ {[%clk 0:00:03.4]} 99. Ke5
{[%clk 0:00:03.6]} 99... Qe2+ {[%clk 0:00:03.8]} 100. Kf4 {[%clk 0:00:04]}
100... Qe6 {[%clk 0:00:03.6]} 101. Qe5+ {[%clk 0:00:03.7]} 101... Kf7 {[%clk
0:00:03.9]} 102. Qxe6+ {[%clk 0:00:03.8]} 102... Kxe6 {[%clk 0:00:04.8]} 103.
Ke4 {[%clk 0:00:03.8]} 103... Kf6 {[%clk 0:00:03.8]} 104. Kf4 {[%clk 0:00:04.4]}
104... g5+ {[%clk 0:00:03.1]} 105. hxg5+ {[%clk 0:00:04.5]} 105... Kg6 {[%clk
0:00:03.8]} 106. g4 {[%clk 0:00:04.3]} 106... h4 {[%clk 0:00:04.2]} 107. Kf3
{[%clk 0:00:04.6]} 107... Kxg5 {[%clk 0:00:04.3]} 108. Kg2 {[%clk 0:00:05.5]}
108... Kxg4 {[%clk 0:00:04.7]} 109. Kh1 {[%clk 0:00:06.4]} 109... Kh3 {[%clk
0:00:04.6]} 110. Kg1 {[%clk 0:00:07.3]} 110... Kg3 {[%clk 0:00:04.7]} 111. Kh1
{[%clk 0:00:08.2]} 111... Kh3 {[%clk 0:00:04.8]} 112. Kg1 {[%clk 0:00:09.1]}
112... Kg4 {[%clk 0:00:04.9]} 113. Kh1 {[%clk 0:00:10]} 113... Kg3 {[%clk
0:00:05]} 114. Kg1 {[%clk 0:00:10.9]} 114... h3 {[%clk 0:00:04.1]} 115. Kh1
{[%clk 0:00:11.8]} 115... Kh4 {[%clk 0:00:04.2]} 116. Kg1 {[%clk 0:00:12.7]}
116... Kg4 {[%clk 0:00:04.3]} 117. Kh1 {[%clk 0:00:13.6]} 117... Kf4 {[%clk
0:00:04.5]} 118. Kg1 {[%clk 0:00:14.5]} 118... Kf3 {[%clk 0:00:04.5]} 119. Kh1
{[%clk 0:00:15.4]} 119... Kf2 {[%clk 0:00:04.7]} 120. Kh2 {[%clk 0:00:15.4]}
120... Kf1 {[%clk 0:00:05.2]} 121. Kxh3 {[%clk 0:00:16.3]} 1/2-1/2

[Event "Late-Titled-Tuesday-Blitz-May-28-2024"]
[Site "Chess.com"]
[Date "2024.05.28"]
[Round "2"]
[White "Stanbad1"]
[Black "giovannibrandao7"]
[Result "1-0"]
[WhiteElo "2669"]
[BlackElo "2270"]
[TimeControl "180+1"]
[EndTime "14:12:26 PDT"]
[Termination "Stanbad1 won by resignation"]

1. d4 {[%clk 0:03:00.9]} 1... Nf6 {[%clk 0:03:00]} 2. Nc3 {[%clk 0:02:59.3]}
2... d5 {[%clk 0:02:59.6]} 3. Bf4 {[%clk 0:02:57.9]} 3... e6 {[%clk 0:02:59.4]}
4. Nb5 {[%clk 0:02:57.4]} 4... Na6 {[%clk 0:02:58.8]} 5. e3 {[%clk 0:02:57.5]}
5... c6 {[%clk 0:02:58]} 6. Nc3 {[%clk 0:02:57.2]} 6... Bd6 {[%clk 0:02:58.6]}
7. Bxd6 {[%clk 0:02:56.9]} 7... Qxd6 {[%clk 0:02:59.5]} 8. Nf3 {[%clk
0:02:57.2]} 8... Ne4 {[%clk 0:02:51.5]} 9. Nxe4 {[%clk 0:02:56.3]} 9... dxe4
{[%clk 0:02:51.5]} 10. Nd2 {[%clk 0:02:56.9]} 10... f5 {[%clk 0:02:48.4]} 11.
Nc4 {[%clk 0:02:56.3]} 11... Qe7 {[%clk 0:02:43.6]} 12. Ne5 {[%clk 0:02:55.6]}
12... Nb8 {[%clk 0:02:36.6]} 13. Qh5+ {[%clk 0:02:54.9]} 13... Kf8 {[%clk
0:02:24.4]} 14. Ng6+ {[%clk 0:02:53.3]} 14... hxg6 {[%clk 0:02:23]} 15. Qxh8+
{[%clk 0:02:53.9]} 1-0

[Event "Late-Titled-Tuesday-Blitz-May-28-2024"]
[Site "Chess.com"]
[Date "2024.05.28"]
[Round "2"]
[White "GMTalks_Youtube"]
[Black "rdarruda"]
[Result "1-0"]
[WhiteElo "2784"]
[BlackElo "2538"]
[TimeControl "180+1"]
[EndTime "14:13:22 PDT"]
[Termination "GMTalks_Youtube won by resignation"]

1. d4 {[%clk 0:03:00.9]} 1... Nf6 {[%clk 0:02:59.4]} 2. c4 {[%clk 0:03:00.6]}
2... e5 {[%clk 0:02:58.8]} 3. dxe5 {[%clk 0:03:00.1]} 3... Ne4 {[%clk
0:02:59.4]} 4. a3 {[%clk 0:02:58.8]} 4... Nc6 {[%clk 0:02:59.3]} 5. Nf3 {[%clk
0:02:55.7]} 5... d6 {[%clk 0:02:59.4]} 6. Qc2 {[%clk 0:02:53.8]} 6... d5 {[%clk
0:02:58]} 7. e3 {[%clk 0:02:41.4]} 7... Be6 {[%clk 0:02:56.8]} 8. b3 {[%clk
0:02:37]} 8... Qd7 {[%clk 0:02:45.7]} 9. Bb2 {[%clk 0:02:33.6]} 9... O-O-O
{[%clk 0:02:45.3]} 10. cxd5 {[%clk 0:02:30.1]} 10... Qxd5 {[%clk 0:02:36.3]} 11.
Bc4 {[%clk 0:02:16.5]} 11... Bb4+ {[%clk 0:02:26.2]} 12. Ke2 {[%clk 0:02:09.9]}
1-0

[Event "Late-Titled-Tuesday-Blitz-May-28-2024"]
[Site "Chess.com"]
[Date "2024.05.28"]
[Round "2"]
[White "Dacean99"]
[Black "nrvisakh"]
[Result "1-0"]
[WhiteElo "2587"]
[BlackElo "2904"]
[TimeControl "180+1"]
[EndTime "14:13:43 PDT"]
[Termination "Dacean99 won by checkmate"]

1. e4 {[%clk 0:02:57.6]} 1... d6 {[%clk 0:03:00.9]} 2. d4 {[%clk 0:02:56.4]}
2... Nf6 {[%clk 0:03:00.6]} 3. Nc3 {[%clk 0:02:56.8]} 3... g6 {[%clk 0:02:59.5]}
4. Bg5 {[%clk 0:02:56.4]} 4... Bg7 {[%clk 0:02:59.8]} 5. Qd2 {[%clk 0:02:56.4]}
5... c6 {[%clk 0:02:59]} 6. O-O-O {[%clk 0:02:54.3]} 6... b5 {[%clk 0:02:58.6]}
7. f3 {[%clk 0:02:52.7]} 7... O-O {[%clk 0:02:55]} 8. h4 {[%clk 0:02:50.1]} 8...
h5 {[%clk 0:02:54.6]} 9. Kb1 {[%clk 0:02:46.5]} 9... a5 {[%clk 0:02:54.3]} 10.
Nh3 {[%clk 0:02:43.9]} 10... Bxh3 {[%clk 0:02:53.1]} 11. Rxh3 {[%clk 0:02:43.4]}
11... Nbd7 {[%clk 0:02:53.1]} 12. Bd3 {[%clk 0:02:42.8]} 12... b4 {[%clk
0:02:49]} 13. Ne2 {[%clk 0:02:42.4]} 13... c5 {[%clk 0:02:49.4]} 14. d5 {[%clk
0:02:19.3]} 14... Nb6 {[%clk 0:02:44.9]} 15. Nf4 {[%clk 0:02:10.9]} 15... c4
{[%clk 0:02:44.7]} 16. Be2 {[%clk 0:02:10.6]} 16... c3 {[%clk 0:02:45.3]} 17.
Qe3 {[%clk 0:02:09.1]} 17... cxb2 {[%clk 0:02:45.2]} 18. Bxf6 {[%clk 0:02:02.2]}
18... Bxf6 {[%clk 0:02:44.9]} 19. Nxh5 {[%clk 0:01:54.9]} 19... gxh5 {[%clk
0:02:42]} 20. Qh6 {[%clk 0:01:51.9]} 20... Be5 {[%clk 0:02:33.9]} 21. f4 {[%clk
0:01:50.5]} 21... Bxf4 {[%clk 0:02:33.4]} 22. Qxf4 {[%clk 0:01:48.1]} 22... f6
{[%clk 0:02:33.9]} 23. Rg3+ {[%clk 0:01:45.8]} 23... Kf7 {[%clk 0:02:33.8]} 24.
Bxh5# {[%clk 0:01:45.3]} 1-0

[Event "Late-Titled-Tuesday-Blitz-May-28-2024"]
[Site "Chess.com"]
[Date "2024.05.28"]
[Round "2"]
[White "aval7an"]
[Black "NCchamp"]
[Result "1-0"]
[WhiteElo "2676"]
[BlackElo "2357"]
[TimeControl "180+1"]
[EndTime "14:14:07 PDT"]
[Termination "aval7an won by resignation"]

1. d4 {[%clk 0:02:55.1]} 1... d5 {[%clk 0:02:59.5]} 2. c4 {[%clk 0:02:55.3]}
2... dxc4 {[%clk 0:03:00.4]} 3. e3 {[%clk 0:02:54.8]} 3... e5 {[%clk 0:02:58.4]}
4. Bxc4 {[%clk 0:02:54.6]} 4... exd4 {[%clk 0:02:58.6]} 5. exd4 {[%clk
0:02:55.5]} 5... Bd6 {[%clk 0:02:58.6]} 6. Nf3 {[%clk 0:02:55.1]} 6... Nf6
{[%clk 0:02:59]} 7. O-O {[%clk 0:02:55.1]} 7... O-O {[%clk 0:02:58.9]} 8. Nc3
{[%clk 0:02:54.7]} 8... Bg4 {[%clk 0:02:55.2]} 9. h3 {[%clk 0:02:54.2]} 9... Bh5
{[%clk 0:02:55.4]} 10. g4 {[%clk 0:02:53.9]} 10... Bg6 {[%clk 0:02:54.7]} 11.
Ne5 {[%clk 0:02:53.8]} 11... Nc6 {[%clk 0:02:52.8]} 12. f4 {[%clk 0:02:53]}
12... Nxe5 {[%clk 0:02:06]} 13. fxe5 {[%clk 0:02:48.3]} 13... Ne4 {[%clk
0:02:05.5]} 14. Nxe4 {[%clk 0:02:17.6]} 14... Bxe4 {[%clk 0:02:03.7]} 15. exd6
{[%clk 0:02:17.9]} 15... Qxd6 {[%clk 0:02:04.6]} 16. Bf4 {[%clk 0:02:17.7]}
16... Qb4 {[%clk 0:02:03.9]} 17. Qb3 {[%clk 0:02:12]} 17... Qa5 {[%clk
0:02:01.2]} 18. Rae1 {[%clk 0:02:05.1]} 18... Rae8 {[%clk 0:02:00.3]} 19. Be5
{[%clk 0:02:02.7]} 19... Bf5 {[%clk 0:01:56.6]} 20. gxf5 {[%clk 0:02:00.8]} 1-0

[Event "Late-Titled-Tuesday-Blitz-May-28-2024"]
[Site "Chess.com"]
[Date "2024.05.28"]
[Round "2"]
[White "dennisodessa"]
[Black "BenchGM"]
[Result "1-0"]
[WhiteElo "2554"]
[BlackElo "2233"]
[TimeControl "180+1"]
[EndTime "14:14:08 PDT"]
[Termination "dennisodessa won by resignation"]

1. d4 {[%clk 0:02:59.9]} 1... Nf6 {[%clk 0:02:59.7]} 2. c4 {[%clk 0:02:59.6]}
2... d6 {[%clk 0:02:59.9]} 3. Nc3 {[%clk 0:02:59.9]} 3... Bf5 {[%clk 0:03:00.3]}
4. f3 {[%clk 0:02:59.1]} 4... e5 {[%clk 0:03:00.3]} 5. d5 {[%clk 0:02:58.9]}
5... e4 {[%clk 0:02:59.7]} 6. Bg5 {[%clk 0:02:58.7]} 6... Nbd7 {[%clk
0:02:52.2]} 7. fxe4 {[%clk 0:02:57.9]} 7... Bg6 {[%clk 0:02:51.6]} 8. Nf3 {[%clk
0:02:57.2]} 8... h6 {[%clk 0:02:51.3]} 9. Bh4 {[%clk 0:02:57]} 9... Be7 {[%clk
0:02:50.5]} 10. Qd4 {[%clk 0:02:56.6]} 10... O-O {[%clk 0:02:47.9]} 11. e5
{[%clk 0:02:53.9]} 11... dxe5 {[%clk 0:02:47.5]} 12. Nxe5 {[%clk 0:02:54.8]}
12... Nxe5 {[%clk 0:02:47.6]} 13. Qxe5 {[%clk 0:02:55.5]} 13... Re8 {[%clk
0:02:47.7]} 14. Qd4 {[%clk 0:02:52.9]} 14... c6 {[%clk 0:02:42.5]} 15. O-O-O
{[%clk 0:02:43.7]} 15... cxd5 {[%clk 0:02:40.6]} 16. cxd5 {[%clk 0:02:36.8]}
16... Rc8 {[%clk 0:02:31]} 17. d6 {[%clk 0:02:28.2]} 17... Bf8 {[%clk
0:02:30.8]} 18. d7 {[%clk 0:02:26.9]} 18... Bc5 {[%clk 0:02:19.4]} 19. Bxf6
{[%clk 0:02:22.2]} 19... Bxd4 {[%clk 0:02:16.5]} 20. Bxd8 {[%clk 0:02:21]} 20...
Be3+ {[%clk 0:02:16.3]} 21. Rd2 {[%clk 0:02:19]} 21... Rexd8 {[%clk 0:02:13.7]}
22. dxc8=Q {[%clk 0:02:17.3]} 22... Rxc8 {[%clk 0:02:11.4]} 23. Kd1 {[%clk
0:02:14]} 23... b5 {[%clk 0:02:09.7]} 24. Nd5 {[%clk 0:02:00]} 24... Bxd2 {[%clk
0:02:08.7]} 25. Ne7+ {[%clk 0:02:00]} 1-0

[Event "Late-Titled-Tuesday-Blitz-May-28-2024"]
[Site "Chess.com"]
[Date "2024.05.28"]
[Round "2"]
[White "MaiqMaster"]
[Black "BillCoe"]
[Result "1-0"]
[WhiteElo "2458"]
[BlackElo "2084"]
[TimeControl "180+1"]
[EndTime "14:14:13 PDT"]
[Termination "MaiqMaster won by resignation"]

1. e4 {[%clk 0:03:00.9]} 1... c5 {[%clk 0:02:59.7]} 2. Nc3 {[%clk 0:03:00.5]}
2... e6 {[%clk 0:03:00.1]} 3. Nge2 {[%clk 0:02:59.9]} 3... d5 {[%clk 0:02:59.9]}
4. exd5 {[%clk 0:02:57.4]} 4... exd5 {[%clk 0:03:00.8]} 5. d4 {[%clk 0:02:57.9]}
5... Nf6 {[%clk 0:03:00.3]} 6. g3 {[%clk 0:02:57.1]} 6... Be7 {[%clk 0:02:59.7]}
7. Bg2 {[%clk 0:02:56.4]} 7... O-O {[%clk 0:02:58.9]} 8. O-O {[%clk 0:02:56.4]}
8... Nc6 {[%clk 0:02:58.2]} 9. dxc5 {[%clk 0:02:54.2]} 9... Bxc5 {[%clk
0:02:54.6]} 10. Nxd5 {[%clk 0:02:51.3]} 10... Nxd5 {[%clk 0:02:49.6]} 11. Qxd5
{[%clk 0:02:52.2]} 11... Qxd5 {[%clk 0:02:45.6]} 12. Bxd5 {[%clk 0:02:53.1]}
12... Bh3 {[%clk 0:02:36.8]} 13. Bg2 {[%clk 0:02:51.6]} 13... Bxg2 {[%clk
0:02:31.1]} 14. Kxg2 {[%clk 0:02:52.5]} 14... Nb4 {[%clk 0:02:30.9]} 15. c3
{[%clk 0:02:45.9]} 15... Nd3 {[%clk 0:02:27.5]} 16. Nf4 {[%clk 0:02:36.5]} 16...
Nxc1 {[%clk 0:02:25]} 17. Raxc1 {[%clk 0:02:37.4]} 17... Rad8 {[%clk 0:02:21.3]}
18. Rcd1 {[%clk 0:02:36.9]} 18... Rfe8 {[%clk 0:02:12.6]} 19. b4 {[%clk
0:02:30.9]} 19... Bd6 {[%clk 0:02:08.7]} 20. Nd5 {[%clk 0:02:28.1]} 20... Kf8
{[%clk 0:02:00.4]} 21. Ne3 {[%clk 0:02:23.3]} 21... Be5 {[%clk 0:01:59]} 22. c4
{[%clk 0:02:18.1]} 22... Bc3 {[%clk 0:01:55.6]} 23. b5 {[%clk 0:02:05.8]} 23...
Bd4 {[%clk 0:01:54.2]} 24. Nd5 {[%clk 0:02:02.5]} 24... b6 {[%clk 0:01:52]} 25.
Rxd4 {[%clk 0:02:02.1]} 1-0

[Event "Late-Titled-Tuesday-Blitz-May-28-2024"]
[Site "Chess.com"]
[Date "2024.05.28"]
[Round "2"]
[White "neilbhav"]
[Black "LikeWater"]
[Result "1-0"]
[WhiteElo "2427"]
[BlackElo "2700"]
[TimeControl "180+1"]
[EndTime "14:14:19 PDT"]
[Termination "neilbhav won by resignation"]

1. d4 {[%clk 0:03:00.9]} 1... Nf6 {[%clk 0:02:59.6]} 2. c4 {[%clk 0:03:00.6]}
2... c5 {[%clk 0:02:59.4]} 3. d5 {[%clk 0:03:00.1]} 3... b5 {[%clk 0:03:00.1]}
4. cxb5 {[%clk 0:02:59.7]} 4... a6 {[%clk 0:03:00.8]} 5. e3 {[%clk 0:02:58.7]}
5... e6 {[%clk 0:02:59.1]} 6. Nc3 {[%clk 0:02:58.2]} 6... exd5 {[%clk
0:02:58.4]} 7. Nxd5 {[%clk 0:02:56.1]} 7... Be7 {[%clk 0:02:58.4]} 8. Nxe7
{[%clk 0:02:39.9]} 8... Qxe7 {[%clk 0:02:59.3]} 9. Nf3 {[%clk 0:02:39.2]} 9...
O-O {[%clk 0:02:57.3]} 10. b6 {[%clk 0:02:32.7]} 10... d5 {[%clk 0:02:53.4]} 11.
Be2 {[%clk 0:02:32]} 11... Nbd7 {[%clk 0:02:48.1]} 12. O-O {[%clk 0:02:29.8]}
12... Nxb6 {[%clk 0:02:48.2]} 13. b3 {[%clk 0:02:28.9]} 13... a5 {[%clk
0:02:45.8]} 14. Bb2 {[%clk 0:02:27.8]} 14... a4 {[%clk 0:02:46.3]} 15. Rc1
{[%clk 0:02:27.8]} 15... Ba6 {[%clk 0:02:38.1]} 16. Bxa6 {[%clk 0:02:22.6]}
16... Rxa6 {[%clk 0:02:39]} 17. Qc2 {[%clk 0:02:14.8]} 17... Rc8 {[%clk
0:02:37.9]} 18. Rfd1 {[%clk 0:02:09.9]} 18... h6 {[%clk 0:02:35.5]} 19. Qc3
{[%clk 0:01:59.6]} 19... Qe6 {[%clk 0:02:19.6]} 20. Qd3 {[%clk 0:01:45.1]} 20...
Nbd7 {[%clk 0:02:13.7]} 21. Nd4 {[%clk 0:01:42.2]} 21... Qb6 {[%clk 0:02:06.3]}
22. Nf5 {[%clk 0:01:40.6]} 22... axb3 {[%clk 0:02:05.8]} 23. Ne7+ {[%clk
0:01:40.5]} 23... Kf8 {[%clk 0:02:03.2]} 24. Nxc8 {[%clk 0:01:41.4]} 24... Qc7
{[%clk 0:02:02.2]} 25. Qxa6 {[%clk 0:01:41]} 1-0

[Event "Late-Titled-Tuesday-Blitz-May-28-2024"]
[Site "Chess.com"]
[Date "2024.05.28"]
[Round "2"]
[White "Nf3c5"]
[Black "AlexeiShirov"]
[Result "0-1"]
[WhiteElo "2569"]
[BlackElo "2900"]
[TimeControl "180+1"]
[EndTime "14:14:20 PDT"]
[Termination "AlexeiShirov won by resignation"]

1. e4 {[%clk 0:02:58.9]} 1... e5 {[%clk 0:02:59.2]} 2. Nf3 {[%clk 0:02:56.8]}
2... Nc6 {[%clk 0:02:59.1]} 3. Nc3 {[%clk 0:02:57.3]} 3... Nf6 {[%clk
0:02:57.7]} 4. h3 {[%clk 0:02:55.1]} 4... Be7 {[%clk 0:02:51.3]} 5. d4 {[%clk
0:02:53.7]} 5... exd4 {[%clk 0:02:48.9]} 6. Nxd4 {[%clk 0:02:52.3]} 6... O-O
{[%clk 0:02:47.4]} 7. Nf3 {[%clk 0:02:48.1]} 7... Bb4 {[%clk 0:02:42.6]} 8. Bd3
{[%clk 0:02:45.5]} 8... d5 {[%clk 0:02:40.3]} 9. exd5 {[%clk 0:02:43.9]} 9...
Nxd5 {[%clk 0:02:39.2]} 10. O-O {[%clk 0:02:40.1]} 10... Nxc3 {[%clk 0:02:37]}
11. bxc3 {[%clk 0:02:37.4]} 11... Bxc3 {[%clk 0:02:36.6]} 12. Rb1 {[%clk
0:02:35.1]} 12... g6 {[%clk 0:02:29.6]} 13. Bh6 {[%clk 0:02:31.8]} 13... Bg7
{[%clk 0:02:29]} 14. Bxg7 {[%clk 0:02:29.3]} 14... Kxg7 {[%clk 0:02:29]} 15. Qc1
{[%clk 0:02:24.2]} 15... Qf6 {[%clk 0:02:27.9]} 16. Re1 {[%clk 0:02:12.5]} 16...
b6 {[%clk 0:02:16.5]} 17. Be4 {[%clk 0:02:01.7]} 17... Bb7 {[%clk 0:02:14.7]}
18. Rb3 {[%clk 0:01:51.6]} 18... Rad8 {[%clk 0:02:07.5]} 19. Rbe3 {[%clk
0:01:50.7]} 19... Rfe8 {[%clk 0:02:01.8]} 20. Bd3 {[%clk 0:01:47.1]} 20... Rxe3
{[%clk 0:02:00.5]} 21. Qxe3 {[%clk 0:01:48]} 21... Nb4 {[%clk 0:01:58.3]} 22.
Be2 {[%clk 0:01:42.6]} 22... Nxc2 {[%clk 0:01:57.1]} 0-1

[Event "Late-Titled-Tuesday-Blitz-May-28-2024"]
[Site "Chess.com"]
[Date "2024.05.28"]
[Round "2"]
[White "Oleksandr_Bortnyk"]
[Black "rhungaski"]
[Result "1-0"]
[WhiteElo "3019"]
[BlackElo "2600"]
[TimeControl "180+1"]
[EndTime "14:14:21 PDT"]
[Termination "Oleksandr_Bortnyk won by resignation"]

1. e4 {[%clk 0:03:00.9]} 1... e6 {[%clk 0:03:00]} 2. Nf3 {[%clk 0:02:59.7]} 2...
d5 {[%clk 0:03:00.2]} 3. e5 {[%clk 0:03:00.6]} 3... c5 {[%clk 0:03:00.1]} 4. d4
{[%clk 0:03:01.3]} 4... cxd4 {[%clk 0:02:56]} 5. Bd3 {[%clk 0:03:01.9]} 5... Ne7
{[%clk 0:02:54.2]} 6. O-O {[%clk 0:03:02.4]} 6... Nec6 {[%clk 0:02:53.1]} 7. Bf4
{[%clk 0:03:02.1]} 7... Nd7 {[%clk 0:02:52.9]} 8. Re1 {[%clk 0:03:01.4]} 8...
Be7 {[%clk 0:02:53.2]} 9. Bg3 {[%clk 0:03:01.9]} 9... g5 {[%clk 0:02:53.2]} 10.
h3 {[%clk 0:03:00.3]} 10... h5 {[%clk 0:02:53.6]} 11. Nbd2 {[%clk 0:02:58.6]}
11... Qb6 {[%clk 0:02:52.1]} 12. Nb3 {[%clk 0:02:58.6]} 12... a5 {[%clk
0:02:52.2]} 13. a4 {[%clk 0:02:58.6]} 13... Nf8 {[%clk 0:02:29.5]} 14. Nfxd4
{[%clk 0:02:52.9]} 14... Bd7 {[%clk 0:02:29.8]} 15. Nb5 {[%clk 0:02:51.9]} 15...
Nb4 {[%clk 0:02:22.8]} 16. Be2 {[%clk 0:02:50.7]} 16... Bxb5 {[%clk 0:02:23]}
17. Bxb5+ {[%clk 0:02:50.3]} 17... Nc6 {[%clk 0:02:23.1]} 18. c4 {[%clk
0:02:25.2]} 18... dxc4 {[%clk 0:02:19.3]} 19. Nd2 {[%clk 0:02:25.3]} 19... Qd4
{[%clk 0:01:55]} 20. Re4 {[%clk 0:02:05.6]} 20... Qd3 {[%clk 0:01:49]} 21. Rxc4
{[%clk 0:02:02.1]} 21... Rd8 {[%clk 0:01:39.2]} 22. Rxc6 {[%clk 0:02:00.2]} 1-0